Workbook

Sheet 二级利润测算
A1: 合同利润测算表
A2: 合同名称 | B2: 北京市顺义区农业农村局OA办公系统建设项目
A3: 合同收入
A4: 客户名称 | B4: 合同类型 | C4: 合同含税金额 | D4: 税率 | E4: 合同不含税金额 | F4: 销项税金 | J4: 合同收入 | K4: 540000
A5: 顺义农业农村局 | B5: 软件开发服务 | C5: 400000 | D5: 0.06 | E5: =C5/(1+D5) -> 377358.4906 | F5: =C5-E5 -> 22641.50943 | J5: 自有人员成本预算 | K5: 无
A6: 收入小计 | C6: =SUM(C5:C5) -> 400000 | E6: =SUM(E5:E5) -> 377358.4906 | F6: =SUM(F5:F5) -> 22641.50943 | J6: 外包外采成本预算 | K6: 140000
A7: 分包成本（预算） | J7: 费用预算 | K7: 0
A8: 供应商名称 | B8: 合同类型 | C8: 合同含税金额 | D8: 税率 | E8: 合同不含税金额 | F8: 进项税金 | J8: 利润 | K8: 247516.61
A9: 四维 | B9: 售前服务 | C9: 80000 | D9: 0.06 | E9: =C9/(1+D9) -> 75471.69811 | F9: =C9-E9 -> 4528.301887 | J9: 利润率 | K9: 0.6559
B10: 软硬件购置 | C10: 60000 | D10: 0.13 | E10: =C10/(1+D10) -> 53097.34513 | F10: =C10-E10 -> 6902.654867
C11: 0 | D11: 0 | E11: =C11/(1+D11) -> 0 | F11: =C11-E11 -> 0
A12: 直接成本小计 | C12: =SUM(C9:C11) -> 140000 | E12: =SUM(E9:E11) -> 128569.0432 | F12: =SUM(F9:F11) -> 11430.95675
A13: 增值税
A14: 税金分类 | F14: 应交增值税
A15: 增值税 | F15: =F6-F12 -> 11210.55268
A16: 内部交付（预算）
A17: 交付部门名称 | B17: 交付内容 | E17: 金额
E18: 0
A20: 资金占用费
A21: 占用资金 | C21: 占用时间（月） | D21: 占用费率（月） | E21: 资金占用费金额
D22: 0.01 | E22: =A22*C22*D22 -> 0
A23: 管理费用
A24: 费用分类 | E24: 预计费用金额
A25: 城建税、附加税、地方税 | E25: =F15*0.1 -> 1121.055268
A26: 印花税 | E26: =(E12+E6)*3/10000 -> 151.7782601
A27: 办公费
A28: 差旅费
A29: 招待费
A30: 售前投入
A31: 项目人员薪酬
A32: 其他费用 | E32: 0
A33: 项目费用小计 | E33: =SUM(E25:E32) -> 1272.833528
A34: 项目成本费用合计 | E34: =E33+E12+E22+E18+E19 -> 129841.8768
A35: 合同利润
A36: 利润 | C36: =E6-E34 -> 247516.6138 | D36: 财务利润（不含售前） | F36: =E6-E34+E30 -> 247516.6138
A37: 利润率 | C37: =C36/E6 -> 0.6559190265 | D37: 利润率 | F37: =F36/E6 -> 0.6559190265

Sheet 三级利润测算
A1: 合同利润测算表（三级公司）
A2: 合同名称 | B2: 数字菜田项目信息化工程监理服务采购项目（信息化工程）
A3: 合同收入
A4: 客户名称 | B4: 合同类型 | C4: 合同含税金额 | D4: 税率 | E4: 合同不含税金额 | F4: 销项税金
A5: 福通互联 | B5: 技术咨询 | C5: 100000 | D5: 0.06 | E5: =C5/(1+D5) -> 94339.62264 | F5: =C5-E5 -> 5660.377358
E6: =C6/(1+D6) -> 0 | F6: =C6-E6 -> 0
A7: 收入小计 | C7: =SUM(C5:C6) -> 100000 | E7: =SUM(E5:E6) -> 94339.62264 | F7: =SUM(F5:F6) -> 5660.377358
A8: 分包成本（预算）
A9: 供应商名称 | B9: 合同类型 | C9: 合同含税金额 | D9: 税率 | E9: 合同不含税金额 | F9: 进项税金
A10: --- | B10: 服务 | E10: =C10/(1+D10) -> 0 | F10: =C10-E10 -> 0
E11: =C11/(1+D11) -> 0 | F11: =C11-E11 -> 0
E12: 0 | F12: 0
A13: 直接成本小计 | C13: =SUM(C10:C12) -> 0 | E13: =SUM(E10:E12) -> 0 | F13: =SUM(F10:F12) -> 0
A14: 增值税
A15: 税金分类 | F15: 应交增值税
A16: 增值税 | F16: =F7-F13 -> 5660.377358
A17: 资金占用费
A18: 占用资金 | C18: 占用时间（月） | D18: 占用费率（月） | E18: 资金占用费金额
D19: 0.01 | E19: =A19*C19*D19 -> 0
A20: 管理费用
A21: 费用分类 | E21: 预计费用金额
A22: 城建税、附加税、地方税 | E22: =F16*0.1 -> 566.0377358
A23: 印花税 | E23: =(E13+E7)*3/10000 -> 28.30188679
A24: 办公费
A25: 差旅费
A26: 招待费
A27: 售前投入
A28: 项目人员薪酬
A29: 其他费用
A30: 项目费用小计 | E30: =SUM(E22:E29) -> 594.3396226
A31: 项目成本费用合计 | E31: =E30+E13+E19 -> 594.3396226
A32: 合同利润
A33: 利润 | C33: =E7-E31 -> 93745.28302 | D33: 财务利润（不含售前） | F33: =E7-E31+E27 -> 93745.28302
A34: 利润率 | C34: =C33/E7 -> 0.9937 | D34: 利润率 | F34: =F33/E7 -> 0.9937

Sheet 合并利润
A1: 合同利润二三级合并测算表
A2: 合同名称 | B2: 数字菜田项目信息化工程监理服务采购项目（信息化工程）
A3: 合同收入
C4: 合同含税金额 | D4: 税率 | E4: 合同不含税金额
A5: 收入小计 | C5: =二级利润测算!C6 -> 400000 | E5: =二级利润测算!E6 -> 377358.4906
A6: 分包成本
C7: 合同含税金额 | D7: 税率 | E7: 合同不含税金额
A8: 第三方分包 | C8: =二级利润测算!C10 -> 60000 | D8: =二级利润测算!D10 -> 0.13 | E8: =SUM(C8/(1+D8)) -> 53097.34513
A9: 第三方分包 | C9: =二级利润测算!C11 -> 0 | D9: =二级利润测算!D11 -> 0 | E9: =SUM(C9/(1+D9)) -> 0
A10: 第三方分包 | C10: =二级利润测算!#REF! ->  | D10: =二级利润测算!#REF! ->  | E10: =SUM(C10/(1+D10)) -> 
A11: 第三方分包 | C11: =二级利润测算!#REF! ->  | D11: =二级利润测算!#REF! ->  | E11: =SUM(C11/(1+D11)) -> 
A13: 管理费用（二、三级合并）
A14: 费用分类 | C14: 二级费用 | D14: 三级费用 | E14: 预计费用金额合计
A15: 内部交付 | C15: =二级利润测算!E18+二级利润测算!E19 -> 0 | E15: =SUM(C15:D15) -> 0
A16: 城建税、附加税、地方税 | C16: =二级利润测算!E25 -> 1121.055268 | D16: =三级利润测算!E22 -> 566.0377358 | E16: =SUM(C16:D16) -> 1687.093004
A17: 印花税 | C17: =二级利润测算!E26 -> 151.7782601 | D17: =三级利润测算!E23 -> 28.30188679 | E17: =SUM(C17:D17) -> 180.0801469
A18: 办公费 | C18: =二级利润测算!E27 -> 0 | D18: =三级利润测算!E24 -> 0 | E18: 0
A19: 差旅费 | C19: =二级利润测算!E28 -> 0 | D19: =三级利润测算!E25 -> 0 | E19: 0
A20: 招待费 | C20: =二级利润测算!E29 -> 0 | D20: =三级利润测算!E26 -> 0 | E20: 0
A21: 售前投入 | C21: =二级利润测算!E30 -> 0 | D21: =三级利润测算!E27 -> 0 | E21: =SUM(C21:D21) -> 0
A22: 项目人员薪酬 | C22: =二级利润测算!E31 -> 0 | D22: =三级利润测算!E28 -> 0 | E22: 0
A23: 其他费用 | C23: =二级利润测算!E32 -> 0 | D23: =三级利润测算!E29 -> 0 | E23: 0
A24: 项目费用小计 | C24: =二级利润测算!E33 -> 1272.833528 | D24: =三级利润测算!E30 -> 594.3396226 | E24: 1867.173151
A25: 资金占用费用 | C25: =二级利润测算!E22 -> 0 | D25: =三级利润测算!E19 -> 0 | E25: 0
A26: 项目成本费用合计 | E26: =E24+E25+E15+E8+E9+E10+E11 -> 
A27: 合同利润
A28: 利润 | C28: =E5-E26 ->  | D28: 利润（不含售前） | E28: =E5-E26+E21 -> 
A29: 利润率 | C29: =E28/E5 ->  | D29: 利润率 | E29: =E28/E5 -> 

Sheet Sheet1
B2: 序号 | C2: 项目内容 | D2: 分项内容 | E2: 数量 | F2: 单价（元） | G2: 总价（元） | H2: 备注
D3: 安装费 | E3: 150 | F3: 270 | G3: 40500
D4: 调试、试运行费 | E4: 150 | F4: 150 | G4: 22500
D5: 安装费 | E5: 4100 | F5: 76.7 | G5: 314470
D6: 调试、试运行费 | E6: 4100 | F6: 147.3 | G6: 603930
B7: 6 | C7: 通信SIM卡 | E7: 4250 | F7: 52 | G7: 221000
B8: 7 | C8: 接线盒 | E8: 3100 | F8: 27.95 | G8: 86645
B9: 8 | C9: 插座 | E9: 3100 | F9: 15 | G9: 46500
B10: 9 | C10: 空气开关 | E10: 3100 | F10: 38.37 | G10: 118947
B11: 10 | C11: 开关 | E11: 38 | F11: 60.5 | G11: 2299
B12: 15 | C12: 人工挖基坑（电线杆基础） | E12: 164.75 | F12: 173 | G12: 28501.75
B13: 16 | C13: 人工挖基坑（气象站基础） | E13: 37.5 | F13: 173 | G13: 6487.5
B14: 17 | C14: 独立基础 | E14: 37.5 | F14: 695.5 | G14: 26081.25
B15: 18 | C15: 电源架设 | E15: 4090 | F15: 15.95 | G15: 65235.5
B16: 19 | C16: 电源架设冷棚施工 | E16: 7500 | F16: 7.88 | G16: 59100
B17: 20 | C17: 棚内电源架设施工 | E17: 69000 | F17: 4.35 | G17: 300150
B18: 21 | C18: 电杆架设 | E18: 659 | F18: 767 | G18: 505453
B19: 22 | C19: PVC线管 | E19: 13500 | F19: 32.4 | G19: 437400
B20: 合计 | G20: =SUM(G3:G19) -> 2885200

Sheet Sheet2
B2: 序号 | C2: 项目内容 | D2: 分项内容 | E2: 数量 | F2: 单价（元） | G2: 总价（元） | H2: 备注
B3: 2 | C3: 自动化环境控制系统安装及调试 | E3: 10 | F3: 7665 | G3: 76650 | H3: 一拖一
B4: 3 | C4: 水肥一体化控制系统安装及调试 | E4: 4 | F4: 13800 | G4: 55200 | H4: 一拖一
B5: 4 | C5: 农田环境小型气象站安装及调试 | D5: 立杆 | E5: 150 | F5: 786 | G5: 117900 | H5: 含设备费1011000元；安装费40500元、调试、试运行费用22500元。
D6: 太阳能供电系统 | E6: 150 | F6: 980 | G6: 147000
D7: 温湿度监测传感器 | E7: 150 | F7: 561 | G7: 84150
D8: 光照检测传感器 | E8: 150 | F8: 562 | G8: 84300
D9: 200万摄像头 | E9: 150 | F9: 562 | G9: 84300
D10: 采集集控终端箱 | E10: 150 | F10: 45 | G10: 6750
D11: 采集集控终端-数据集中采集模块 | E11: 150 | F11: 700 | G11: 105000
D12: 采集集控终端-数据集中通讯模块 | E12: 150 | F12: 700 | G12: 105000
D13: 采集集控终端-数据集中存储模块 | E13: 150 | F13: 645 | G13: 96750
D14: 避雷针 | E14: 150 | F14: 225 | G14: 33750
D15: 开发、集成、组装费 | E15: 150 | F15: 974 | G15: 146100
B16: 5 | C16: 大棚环境监测设备安装及调试 | D16: 监测设备 | E16: 4100 | F16: 961 | G16: 3940100 | H16: 其中含设备费3940100元，安装费314470元、调试、试运行费603930元。
B17: 11 | C17: 磁盘阵列 | E17: 1 | F17: 147200 | G17: 147200
B18: 12 | C18: 网络机柜 | E18: 1 | F18: 3800 | G18: 3800
B19: 13 | C19: 操作台 | E19: 1 | F19: 3200 | G19: 3200
B20: 14 | C20: 交换机 | E20: 1 | F20: 5250 | G20: 5250
B21: 合计 | G21: =SUM(G3:G20) -> 5242400
